Cogmind - Beta 15 @@@ ROGUE MODE // 2025.09.05 @ 23:28:29 Player: kiiro Result: Destroyed by G-47 Trooper via exploding Power Conduit Performance ------------- Evolutions (3) 1500 Regions Visited (4) 800 Robots Destroyed (49) 245 Value Destroyed (1500) 1500 Prototype IDs (2) 40 Alien Tech Used (0) 0 Bonus (0) 0 TOTAL SCORE: 4085 Bonus ------- None Cogmind --------- Core Integrity 0/700 Matter 300/300 Energy 100/100 System Corruption 6% Temperature Cool (16) Movement Core (150) Ox2 Location -7/Factory Parts ------- > --- POWER (1) -------- (None) > --- PROPULSION (3) --- (None) > --- UTILITY (7) ------ Visual Processing Unit Advanced Visual Processing Unit Transmission Jammer Hacking Suite > --- WEAPON (2) ------- Heavy Flail Power Maul > --- INVENTORY (5) ---- Power Maul Power Maul Peak State ------------ > --- POWER ------------ Light Nuclear Core > --- PROPULSION ------- Hover Unit Hover Unit Airjet > --- UTILITY ---------- Visual Processing Unit Advanced Visual Processing Unit Sensor Array Targeting Computer Transmission Jammer Hacking Suite System Shield > --- WEAPON ----------- Maul Heavy Mace > --- INVENTORY -------- Light Nuclear Core Light Treads Light Treads Maul [Rating: 30] Favorites ----------- Power Light Nuclear Core Engine Light Ion Engine Power Core Light Nuclear Core Propulsion Wheel Treads Light Treads Leg Aluminum Leg Wheel Wheel Hover Unit Hover Unit Flight Unit Improved Flight Unit Utility Visual Processing Unit Device ECM Suite Processor Visual Processing Unit Hackware Hacking Suite Protection Light Armor Plating Weapon Maul Energy Cannon Beam Cannon Ballistic Gun Heavy Assault Rifle Ballistic Cannon Improved Light Cannon Impact Weapon Maul Build | -11 -10 -9 -8 -7 ------- Run | Yrd Mat Mat Mat Fac Slots Evolved 6 | . . 2 2 2 Power . | . . . . . Propulsion 1 | . . . 1 . Utility 5 | . . 2 1 2 Weapon . | . . . . . Parts Attached 59 | 5 5 6 24 19 Power 6 | 1 . . 4 1 Engine 4 | 1 . . 3 . Core 2 | . . . 1 1 Reactor . | . . . . . Propulsion 26 | 2 2 2 10 10 Treads 4 | . . . 3 1 Leg 1 | . . . 1 . Wheel 8 | 2 . 1 4 1 Hover 7 | . . . 2 5 Flight 6 | . 2 1 . 3 Utility 12 | . 2 2 4 4 Device 5 | . 1 1 2 1 Storage . | . . . . . Processor 3 | . 1 . 2 . Hackware 3 | . . . . 3 Protection 1 | . . 1 . . Artifact . | . . . . . Weapon 15 | 2 1 2 6 4 Energy Gun . | . . . . . Energy Cannon 1 | . 1 . . . Ballistic Gun 4 | 2 . 2 . . Ballistic Cannon 3 | . . . 3 . Launcher . | . . . . . Special Weapon . | . . . . . Impact Weapon 7 | . . . 3 4 Slashing Weapon . | . . . . . Piercing Weapon . | . . . . . Special Melee Weapon . | . . . . . Unidentified Prototypes 2 | . . . 1 1 Parts Lost 23 | . . 1 4 18 Power 3 | . . . 1 2 Propulsion 12 | . . 1 2 9 Utility 5 | . . . 1 4 Weapon 3 | . . . . 3 Highest Loss Streak 5 | . . 1 3 5 To Critical Strikes . | . . . . . Average Backups 3 | . 2 4 4 3 Power . | . 1 1 . . Propulsion 1 | . . 2 1 1 Utility . | . . . 1 . Weapon 1 | . . 1 1 . Tool/Special . | . . . . . Unused Backups 3 | . . . . 3 Power . | . . . . . Propulsion . | . . . . . Utility 1 | . . . . 1 Weapon 2 | . . . . 2 Tool/Special . | . . . . . Average Slot Usage (%) 86 | . 85 80 93 84 Engine 5 | . 14 11 8 . Core 2 | . . . . 5 Treads 3 | . . . 3 4 Wheel 9 | . 25 14 16 . Hover 5 | . . . 2 9 Flight 2 | . 2 6 . 2 Device 12 | . 10 11 15 12 Processor 17 | . 4 11 20 20 Hackware 5 | . . . . 11 Protection 2 | . . 5 5 . Energy Cannon 1 | . 11 3 . . Ballistic Gun 4 | . 14 16 5 . Ballistic Cannon 2 | . . . 7 . Impact Weapon 8 | . . . 5 14 Peak Build Rating 30 | 5 8 11 20 30 Average Rating 18 | 3 6 9 16 25 On Entrance 8 | . 5 8 11 20 Naked Turns . | . . . . . Heaviest Build 20 | 6 9 14 20 14 Greatest Support 68 | 20 20 20 60 68 Greatest Overweight (x) 4 | . 2 1 4 4 Average Overweight (x) . | . . . . . Largest Inventory Capacity 5 | 5 5 5 5 5 Average Capacity 5 | 5 5 5 5 5 Most Carried 5 | 1 5 5 5 5 Average Carried 3 | . 2 4 4 3 Final Capacity 5 | 5 5 5 5 5 Final Carried 5 | 1 5 5 5 2 Class Distribution -------------------- 48% | Mutant 28% | Hacker-Mutant 23% | Scavenger-Mutant Dominant Class ---------------- Mutant | -10/Materials Scavenger-Mutant | -9/Materials Scavenger-Mutant | -8/Materials Hacker-Mutant | -7/Factory Resources | -11 -10 -9 -8 -7 ----------- Run | Yrd Mat Mat Mat Fac Matter Collected 1178 | 250 117 122 541 148 Remotely 269 | . 117 70 82 . Salvage Created 1625 | . 263 268 567 527 Parts 66 | . 15 16 22 13 Haulers Intercepted . | . . . . . Recyclers Shooed 3 | . . . 1 2 Parts Field Recycled . | . . . . . Retrieved Matter . | . . . . . Parts Self-Destructed . | . . . . . Prevented . | . . . . . Kills | -11 -10 -9 -8 -7 ------- Run | Yrd Mat Mat Mat Fac Combat Hostiles Destroyed 34 | . 8 6 10 10 Melee 4 | . . . . 4 Guns 10 | . 4 4 2 . Cannons 12 | . 4 2 6 . AOE 1 | . . . . 1 Classes Destroyed 9 | . 3 1 2 3 Worker 2 | . . . 2 . Builder 6 | . . . . 6 Recycler 3 | . . . 2 1 Mechanic 1 | . . . . 1 Watcher 3 | . 1 . 2 . Swarmer 7 | . 3 . . 4 Grunt 18 | . 5 4 7 2 Sentry 6 | . . 2 3 1 Programmer 3 | . . . . 3 Best Kill Streak 6 | . 5 4 6 5 Combat Bots Only 6 | . 5 4 6 4 Max Kills in Single Turn 2 | . 2 1 1 2 Gunslinging . | . . . . . Exploded 1 | . . . . 1 Melee 1 | . . . . 1 Uniques/NPCs Destroyed . | . . . . . Combat | -11 -10 -9 -8 -7 -------- Run | Yrd Mat Mat Mat Fac Hostile Shots Fired 289 | . 37 26 61 165 Missed 86 | . 7 11 19 49 Hits 203 | . 30 15 42 116 Projectile 203 | . 30 15 42 116 AOE 1 | . . . . 1 Critical Strikes 10 | . . 1 2 7 Part Disruptions 1 | . . . . 1 Damage Taken 2982 | . 290 196 622 1874 Core 1054 | . 113 36 132 773 Absorbed by Shields . | . . . . . Regen/Repaired (Parts) 117 | . 36 37 . 44 Core Remaining (%) 80 | 100 54 91 76 . Volleys Fired 67 | . 19 12 36 . Largest 2 | . 2 2 2 . Hottest 80 | . 80 80 66 . Shots Fired 134 | . 38 24 72 . Gun 49 | . 19 17 13 . Cannon 85 | . 19 7 59 . Launcher . | . . . . . Special . | . . . . . Kinetic 108 | . 19 17 72 . Thermal 26 | . 19 7 . . Explosive . | . . . . . Electromagnetic . | . . . . . Robot Hit Streak 8 | . 6 8 8 . Robot Miss Streak 4 | . 3 2 4 . Penetration Max . | . . . . . Secondary Targets . | . . . . . Shots Hit Robots 139 | . 24 17 53 45 Core Hits 46 | . 12 10 20 4 Critical Kills 2 | . . . 1 1 Critical Parts Destroyed 15 | . . . 4 11 Critical Strikes 18 | . . . 6 12 Blast 1 | . . . 1 . Smash 17 | . . . 5 12 Melee Attacks 77 | . . . 14 63 Impact 77 | . . . 14 63 Slashing . | . . . . . Piercing . | . . . . . Sneak Attacks 12 | . . . 5 7 Combat Hostiles . | . . . . . Follow-up Attacks 11 | . . . 4 7 Damage Inflicted 4208 | . 369 232 1386 2221 Guns 467 | . 193 146 128 . Cannons 977 | . 176 86 715 . Explosions 202 | . . . . 202 Melee 2531 | . . . 540 1991 Ramming 31 | . . . 3 28 Kinetic 1182 | . 193 146 843 . Thermal 464 | . 176 86 . 202 Explosive . | . . . . . Electromagnetic . | . . . . . Impact 2531 | . . . 540 1991 Slashing . | . . . . . Piercing . | . . . . . Highest Corruption 6 | . . . . 6 Average Corruption 1 | . . . . 1 Corruption Purged . | . . . . . Corruption Blocked . | . . . . . Effects 7 | . . . . 7 Message Errors 2 | . . . . 2 Heat Flow Errors 2 | . . . . 2 Energy Discharges 2 | . . . . 2 Data Loss (minor) 1 | . . . . 1 Overload Shots . | . . . . . Overflow Damage 1365 | . . . 274 1091 Projectiles 36 | . . . 12 24 Explosions 180 | . . . . 180 Melee 1149 | . . . 262 887 Knockbacks 22 | . . . 7 15 Impact 11 | . . . 1 10 Kinetic 6 | . . . 6 . Secondary 5 | . . . . 5 Self-Inflicted Damage 184 | . . . 1 183 Shots 2 | . . . . 2 Rammed 7 | . . . 1 6 Targets Rammed 7 | . . . 1 6 Kicked . | . . . . . Crushed . | . . . . . Highest Temperature 208 | . 198 208 75 172 Average Temperature 58 | . 67 97 29 77 Received Heat Transfer 792 | . 84 102 342 264 Siege Activations . | . . . . . Martial Activations . | . . . . . Shielding Activations . | . . . . . Robots Disrupted . | . . . . . Combat Hostiles . | . . . . . Robots Corrupted 15 | . . . 3 12 Combat Hostiles 7 | . . . 2 5 Parts Fried 20 | . . . 3 17 Impact Corruptions 52 | . . . 9 43 Robots Melted . | . . . . . Combat Hostiles . | . . . . . Parts Melted . | . . . . . Heat Transferred 655 | . 370 185 . 100 Parts Sabotaged . | . . . . . Parts Stolen . | . . . . . Parts Stripped . | . . . . . Power Chain Reactions . | . . . . . Alert | -11 -10 -9 -8 -7 ------- Run | Yrd Mat Mat Mat Fac Maximum Alert Level . | . . . . . Low Security (%) 100 | 100 100 100 100 100 Level 1 . | . . . . . Level 2 . | . . . . . Level 3 . | . . . . . Level 4 . | . . . . . Level 5 . | . . . . . High Security . | . . . . . Max Security . | . . . . . Peak Influence 133 | . 124 133 109 105 Initial 43 | . . 43 38 30 Average 36 | . 49 80 41 22 Influence Increases 1071 | . 196 168 320 387 Destroy 0b10 Robot/C 680 | . 160 120 200 200 Destroy 0b10 Robot/NC 75 | . 5 . 30 40 Destroy Leader 176 | . 22 40 64 50 Successful Hack 44 | . 9 8 7 20 Disable Machine 45 | . . . . 45 Destroy Structure 36 | . . . 4 32 Partial Spotted 15 | . . . 15 . Influence Decreases 1026 | . 92 181 343 410 Entered New Map 152 | . . 61 53 38 Time Decay 682 | . 92 110 250 230 Lost Part 192 | . . 10 40 142 Squads Dispatched 16 | . 1 2 7 6 Investigation 4 | . 1 1 . 2 Extermination 2 | . . . . 2 Reinforcement 5 | . . 1 2 2 Assault . | . . . . . Garrison 5 | . . . 5 . Intercept . | . . . . . Searches Triggered . | . . . . . Construction Impeded 1 | . . . . 1 Haulers Reinforced . | . . . . . Active Scanning Responses . | . . . . . Cargo Convoy Interrupts . | . . . . . Stealth | -11 -10 -9 -8 -7 --------- Run | Yrd Mat Mat Mat Fac Distress Signals 2 | . . . 1 1 Communications Jammed 3 | . . . . 3 Distress Signals 3 | . . . . 3 Times Spotted 57 | . 9 9 20 19 Peak Tracking Total 5 | . 3 3 3 5 Tactical Retreats 2 | . . 1 1 . Traps | -11 -10 -9 -8 -7 ------- Run | Yrd Mat Mat Mat Fac Traps Triggered 6 | . 1 1 1 3 Indirectly . | . . . . . Trap Hack Attempts . | . . . . . Triggered . | . . . . . Disarmed . | . . . . . Reprogrammed . | . . . . . Reused . | . . . . . Traps Extracted . | . . . . . Installed . | . . . . . Triggered . | . . . . . Machines | -11 -10 -9 -8 -7 ---------- Run | Yrd Mat Mat Mat Fac Machines Disabled 3 | . . . . 3 Max in Single Turn 3 | . . . . 3 Garrison Access 1 | . . . 1 . Machines Repaired . | . . . . . Machines Dismantled . | . . . . . Machines Sabotaged . | . . . . . Overloaded Fab Kills . | . . . . . Hacking | -11 -10 -9 -8 -7 --------- Run | Yrd Mat Mat Mat Fac Machines Accessed 27 | . 5 6 6 10 Terminals 11 | . 2 4 3 2 Fabricators 3 | . . . . 3 Repair Stations 3 | . 1 1 . 1 Recycling Units 4 | . 2 . . 2 Scanalyzers 4 | . . 1 2 1 Garrison Access 2 | . . . 1 1 Total Hacks 56 | . 7 14 13 22 Successful 28 | . 5 6 7 10 Failed 28 | . 2 8 6 12 Catastrophic 11 | . 2 3 3 3 Database Lockouts . | . . . . . Manual 20 | . 4 10 5 1 Terminals 23 | . 3 10 7 3 Fabricators 6 | . . . . 6 Repair Stations 6 | . 2 2 . 2 Recycling Units 10 | . 2 . . 8 Scanalyzers 9 | . . 2 5 2 Garrison Access 2 | . . . 1 1 Terminal Hacks 7 | . 1 2 3 1 Record 1 | . . 1 . . Part Schematic 1 | . 1 . . . Open DSF 1 | . . . . 1 Fabricator Index 2 | . . 1 1 . Alert Level 1 | . . . 1 . Reinforcement Status 1 | . . . 1 . Fabricator Hacks 4 | . . . . 4 Load Schematic 2 | . . . . 2 Build 2 | . . . . 2 Repair Station Hacks 6 | . 2 2 . 2 Scan Component 3 | . 1 1 . 1 Repair 3 | . 1 1 . 1 Recycling Unit Hacks 4 | . 2 . . 2 Report Inventory 1 | . . . . 1 Retrieve Components 3 | . 2 . . 1 Scanalyzer 6 | . . 2 3 1 Insert Component 4 | . . 1 2 1 Analyze 2 | . . 1 1 . Garrison Access Hacks 1 | . . . 1 . Seal Access 1 | . . . 1 . Unauthorized Hacks . | . . . . . Terminals . | . . . . . Fabricators . | . . . . . Repair Stations . | . . . . . Recycling Units . | . . . . . Scanalyzers . | . . . . . Garrison Access . | . . . . . Data Cores Recovered . | . . . . . Used . | . . . . . Hacking Detections 21 | . 3 5 4 9 Full Trace Events 2 | . . . . 2 Feedback Events . | . . . . . Feedback Blocked . | . . . . . Robot Schematics Acquired . | . . . . . Robots Built . | . . . . . Authchips . | . . . . . Time . | . . . . . Total Robot Build Rating . | . . . . . Part Schematics Acquired 3 | . 1 1 1 . Parts Built 3 | . . . . 3 Authchips . | . . . . . Time 76 | . . . . 76 Total Part Build Rating 3 | . . . . 3 Parts Repaired 3 | . 1 1 . 1 Time 90 | . 26 26 . 38 Parts Recycled . | . . . . . Recycled Matter . | . . . . . Retrieved Matter . | . . . . . Retrieved Components 6 | . 3 . . 3 Parts Scanalyzed 4 | . . 1 2 1 Part Schematics Acquired 2 | . . 1 1 . Parts Damaged 1 | . . . 1 . Bothacking | -11 -10 -9 -8 -7 ------------ Run | Yrd Mat Mat Mat Fac Used RIF Installer . | . . . . . Robots Hacked . | . . . . . Non-combat . | . . . . . Combat . | . . . . . Robot Hacks Applied . | . . . . . Relay Couplers Released . | . . . . . Fabnet Peak Effective % . | . . . . . Robots Rewired . | . . . . . Allies Hacked . | . . . . . Hacks Repelled . | . . . . . Allies | -11 -10 -9 -8 -7 -------- Run | Yrd Mat Mat Mat Fac Total Allies . | . . . . . Largest Group . | . . . . . Highest-Rated Group . | . . . . . Highest-Rated Ally . | . . . . . Total Orders . | . . . . . Ally Attacks . | . . . . . Total Damage . | . . . . . Kills . | . . . . . Allies Corrupted . | . . . . . Allies Melted . | . . . . . Intel | -11 -10 -9 -8 -7 ------- Run | Yrd Mat Mat Mat Fac Active Infowar (turns) 2216 | . 108 234 752 1122 Optics 2216 | . 108 234 752 1122 Sensors 920 | . . . 163 757 Jamming 702 | . . . . 702 ECM 1027 | . . 45 752 230 Robot Analysis Total . | . . . . . Derelict Logs Recovered . | . . . . . Drone Launches . | . . . . . Drone Recoveries . | . . . . . Exploration | -11 -10 -9 -8 -7 ------------- Run | Yrd Mat Mat Mat Fac Turns Passed 2436 | 39 289 234 752 1122 Spaces Moved 1971 | 39 196 210 553 973 Core 50 | 2 1 . 1 46 Treads 170 | . . . 52 118 Legs . | . . . . . Wheels 746 | 37 168 119 422 . Hover 814 | . . . 78 736 Flight 191 | . 27 91 . 73 Fastest Speed 37 | 50 80 37 56 37 Average Speed 80 | 78 85 61 91 77 Slowest Speed 250 | 80 200 117 250 250 Overloaded Moves . | . . . . . Propulsion Burnouts . | . . . . . Robots Hopped . | . . . . . Potential Cave-ins . | . . . . . Cave-ins Triggered . | . . . . . Exploration Rate (%) 23 | 3 28 17 43 28 Regions Visited 4 Branch Regions . Pre-discovered Areas . | . . . . . Known Exits Taken . | . . . . . Unknown Exits Taken 4 | 1 1 1 1 . Scrap Searched . | . . . . . Spaces Dug . | . . . . . Terrain Destroyed 44 | . . . 2 42 Melee . | . . . . . Projectile 2 | . . . 2 . AOE 42 | . . . . 42 Terrain Rammed . | . . . . . Walls Destroyed . | . . . . . Machines Disabled . | . . . . . Actions | -11 -10 -9 -8 -7 --------- Run | Yrd Mat Mat Mat Fac Total 2559 | 44 277 292 710 1236 Wait 317 | . 53 52 55 157 Move 1967 | 38 195 209 552 973 Hop . | . . . . . Pick Up 18 | 1 1 1 5 10 Fast Attach 40 | 5 6 4 18 7 Attach 21 | . . 3 8 10 Detach 17 | . 3 4 7 3 Swap 10 | . . 3 2 5 Drop 29 | . . 4 16 9 Fire 67 | . 19 12 36 . Melee 66 | . . . 10 56 Ram 7 | . . . 1 6 Kick . | . . . . . Crush . | . . . . . Escape Stasis . | . . . . . Rewire . | . . . . . Trap . | . . . . . Miscellaneous . | . . . . . Route ------- -11/Scrapyard -10/Materials (discovered 2 exits: *Mat / [*Min]) -9/Materials -8/Materials -7/Factory History --------- Turn | Location | Event 7 | -11/Scrapyard | Discovered new exit (range 15) 40 | -11/Scrapyard | Entered Materials 91 | -10/Materials | Repaired Beam Cannon 220 | -10/Materials | Discovered new exit (range 10) 261 | -10/Materials | Discovered new exit (range 4) 319 | -10/Materials | Build established: Mutant 329 | -10/Materials | Entered another Materials area 329 | -9/Materials | Evolved 2 slots: Utility x2 502 | -9/Materials | Repaired Wheel 557 | -9/Materials | Discovered new exit (range 8) 563 | -9/Materials | Entered another Materials area 563 | -8/Materials | Evolved 2 slots: Propulsion x1, Utility x1 736 | -8/Materials | Build established: Scavenger-Mutant 755 | -8/Materials | Garrison activated, responded to threat 1059 | -8/Materials | Lost 3 parts (2n1u) 1063 | -8/Materials | Garrison activated, responded to threat 1102 | -8/Materials | Discovered new exit (range 8) 1315 | -8/Materials | Entered Factory 1315 | -7/Factory | Evolved 2 slots: Utility x2 1573 | -7/Factory | Fabricated Hover Unit (x3) 1727 | -7/Factory | Build established: Hacker-Mutant 1791 | -7/Factory | Repaired Lgt. Nuclear Core 2024 | -7/Factory | Lost 5 parts (3n1u1w) 2243 | -7/Factory | Core integrity fell below 50% 2273 | -7/Factory | Lost 3 parts (1p1n1w) 2285 | -7/Factory | Build established: Mutant 2396 | -7/Factory | Core integrity fell below 20% 2437 | -7/Factory | Destroyed by G-47 Trooper via exploding Power Conduit Last Messages --------------- 02408_ M-28 Smith knocked back. 02409_ M-28 Smith system terminally corrupted. 02409_ Lgt. Deuterium Engine fried. 02409_ Machine Analyzer fried. 02409_ Fabricator disabled. 02411_ Acquired 13 matter. 02411_ Imp. Hover Unit destroyed. 02414_ Destroyed Gravmag System. 02414_ P-60 Hacker system corrupted by crushing effect. 02417_ Power Maul follow-up attack on P-60 Hacker. 02417_ Destroyed Imp. Heat Sink. 02417_ P-60 Hacker system corrupted by crushing effect. 02417_ P-60 Hacker destroyed. 02418_ CPWT:KLHUK=T:>JSXVK=Q|TTOGR1JI78MM2E#Z 02426_ Hacking Suite destroyed. 02430_ Imp. Flight Unit destroyed. 02432_ G-47 Trooper knocked back. 02436_ Critical hit (Burn: +37). 02437_ Power Conduit explodes. 02437_ G-47 Trooper destroyed. Map ----- +----------------------------------------------------+ | ?????# ??# """"""""" ################# | | ?????# ?# #???????????????? | | ?????# ?# """"""""" #??????????###### | | ?????# """ !# #??????????# | | ?????# """ # """"""""" #??????????# | | ?????# """ + #??????????# | | ?????# # """"""""" #??????????# | | ?????# # #??????????# | | ?????######### """"""""" ########???# | | ??????# #???# | | ??????# """"""""" ##### | | ??????# + | | ??????# """ """"""""" ##### | | ??????# """ ! #???# | | ??????# """ ! #???# | | ??????# ! """ ########## | | """ """ ?? | | """ F" ?? | | ^ """ "" | | | | ?? | | ?########+################## ##########/###### | | ????????????????# # #????????? ???? | | ????????????????#|%% """" # #?????????? =??? | | ????????????????# [ r F " g #####?????? =!?? | | ????????????????# g @%# +??????? ? | | ????????????????# " " " # #####??????? ? | | ????????????????# " " " # #???????????? ? | | ????????????????# " " " # #???????????????? | | ????????????????# " " " # #???????????????? | | ????????????????# " " " # #???????????????? | | ????????????????# " " " # #???????????????? | | ????????????????# " " " # ???????????????? | | ????????????????# " " " # ##??????????????? | | ????????????????# " " " # #???????????????? | | ????????????????+ # #???????????????? | | ????????????????# # #???????????????? | | ????????????????############ #???????????????? | | ???????????????????????????? #???????????????? | | ???????????????????????????? #???????????????? | | ???????????????????????????? #???????????????? | | ????????????????????H??????? #???????????????? | | ????????????????????????????##+###???????????????? | | ?????????????????????????????????????????????????? | | ?????????????????????????????????????????????????? | | ?????????????????????????????????????????????????? | | ?????????????????????????????????????????????????? | | ?????????????????????????????????????????????????? | | ?????????????????????????????????????????????????? | | ?????????????????????????????????????????????????? | +----------------------------------------------------+ Best States ------------- Heat Dissipation 34 Energy Generation 14 Energy Capacity 265 Matter Stores 300 Matter Capacity 300 Sight Range 20 Robot Scan Range 14 Terrain Scan Density 10 ECM Strength 1 Jamming Range 12 Additional Mass Support 6 Armor Coverage 150 Evasion (%) 62 Targeting Accuracy 5 Recoil Reduction 3 Offensive Hacking 20 Defensive Hacking 10 Item Schematics ----------------- Hover Unit | -10/Materials | Hacked Flight Unit | -9/Materials | Scanalyzed Ion Engine | -8/Materials | Scanalyzed Robot Schematics ------------------ None Fabricated ------------ Hover Unit | x3 | -7/Factory Repaired ---------- Beam Cannon | 64% | -10/Materials Wheel | 7% | -9/Materials Lgt. Nuclear Core | 12% | -7/Factory Alien Tech Used ----------------- None Achievements -------------- Batter Up No Signal Power Corrupts Challenges ------------ None Game ------ Seed CompositeGatlingBank Manual? 0 Play Time 00:51:19 Cumulative 15.8 hours Start 2025.09.05 @ 22:40:39 End 2025.09.05 @ 23:28:29 Sessions 1 Manual Loads 0 Difficulty Rogue Special Mode None Game No. 14 Rogue 14 Adventurer 0 Explorer 0 Win Type - Total 0 Types 0/0/0/0/0/0/0/0/0/0 Lore% 3 Gallery% 14 Achievement% 15 Wizard Run 0 Options --------- Layout 0 ASCII 1 Keyboard 1 Movement Vi Keybinds 0 Fullscreen 2 Font 24/Proggy Map View 76x50 Zoom Use 0% Tactical HUD 1 Map Filters NONE Filters NONE Steam 1 RUN: 23d83340-a501-4bad-aab1-511d004518b8